[Event "Fall IM-D Norm Invitational 2022"]
[Site "Charlotte"]
[Date "2022.11.19"]
[Round "3"]
[White "Amburgy, Ryan"]
[Black "Eidelman, Gabriel"]
[Result "1-0"]
[ECO "D37"]
[WhiteElo "2175"]
[BlackElo "2197"]
[Annotator "TA"]
[PlyCount "105"]
[EventDate "2022.11.18"]
[EventType "tourn"]
[EventCountry "USA"]
[SourceTitle "playchess.com"]
[Source "ChessBase"]
[SourceQuality "1"]
[TimeControl "5400+30"]

{[%evp 11,105,7,18,20,19,14,15,19,20,19,27,17,20,21,15,17,24,17,18,0,0,0,0,0,0,0,0,0,0,0,29,4,35,44,44,45,66,66,60,63,71,57,67,55,54,63,94,91,83,90,97,97,109,97,188,191,183,184,389,394,392,392,394,392,377,378,1702,1647,6110,6110,6125,6125,6125,29953,29953,29956,29959,29958,29971,29973,29974,29975,29975,29976,29976,29977,29977,29978,29978,29979,29982,29983,29985,29986,29988,29989]} 1. d4 {[%emt 0:00:01]} d5 {[%emt 0:00:42]} 2. c4 {[%emt 0:00:23]} e6 {[%emt 0:00:12]} 3. Nc3 {[%emt 0:00:07]} Nf6 {[%emt 0:00:06]} 4. Nf3 {[%emt 0:00:11]} Be7 {[%emt 0:00:14]} 5. Bf4 {[%emt 0:00:08]} O-O {[%emt 0:00:18]} 6. e3 {[%emt 0:00:07]} Nbd7 {[%emt 0:00:35]} 7. a3 {[%emt 0:00:12] D37: Queen's Gambit Declined: 5 Bf4.} c5 {[%emt 0:00:54]} 8. cxd5 {[%emt 0:00:12]} Nxd5 {[%emt 0:00:13]} 9. Nxd5 {[%emt 0:00:06] The position is equal.} exd5 {[%emt 0:00:10]} 10. dxc5 {[%emt 0:00:05]} Nxc5 {[%emt 0:00:12]} 11. Be5 {[%emt 0:00:18]} Bf6 {[%emt 0:02:11]} 12. Bxf6 {[%emt 0:01:50]} Qxf6 {[%emt 0:00:06]} 13. Qd4 {[%emt 0:00:03]} Qe7 {[%emt 0:00:29] Threatens to win with ...Nb3.} 14. Rd1 {[%emt 0:03:20]} Rd8 {[%emt 0:01:54]} 15. Bd3 {[%emt 0:00:54]} Nxd3+ {[%emt 0:06:52]} 16. Rxd3 {[%emt 0:01:44] [#]} b6 $146 {[%emt 0:11:01]} ({Predecessor:} 16... Bf5 17. Rc3 Rac8 18. O-O Rxc3 19. Qxc3 Rc8 20. Qb3 Be4 21. Nd4 h6 22. f3 Bg6 23. Re1 Rc4 24. Qd1 Qc5 25. Qd2 a5 26. b3 Rc3 27. a4 b6 28. Rd1 {½-½ (28) Speelman,J (2589)-Johannessen,L (2525) Malmo 2003}) 17. Qe5 {[%emt 0:08:38]} Qd7 {[%emt 0:00:23] And now ...Ba6 would win.} 18. Rc3 {[%emt 0:04:18]} Ba6 {[%emt 0:09:58] aiming for ...Qb5.} 19. Nd4 {[%emt 0:01:37] Prevents Qb5.} Rac8 {[%emt 0:06:49]} 20. Rxc8 {[%emt 0:09:44]} Qxc8 {[%emt 0:41:51][%cal Rc8c1]} (20... Rxc8 $5 21. Kd2 $8 h6 $11) 21. Kd2 {[%emt 0:00:14] Against Qc1+} Qc4 {[%emt 0:00:14] ( -> ...Qd3+)} (21... Re8 $5 {[%cal Re8e5]} 22. Qf5 (22. Qxd5 Rd8 $11) 22... Qd8 $14) 22. Qf5 {[%emt 0:00:16] Prevents Qd3+. Active counter play!} Rc8 {[%emt 0:00:29]} 23. Qc2 {[%emt 0:03:26]} g6 {[%emt 0:05:12]} 24. Qxc4 {[%emt 0:06:15]} dxc4 $14 {[%emt 0:00:19][%mdl 4096] Endgame KRB-KRN} 25. e4 {[%emt 0:01:07]} Kf8 {[%emt 0:00:19]} 26. Kc3 {[%emt 0:02:28]} Ke7 {[%emt 0:00:25]} 27. f4 {[%emt 0:03:58]} Rc5 {[%emt 0:03:26]} 28. g4 {[%emt 0:03:54]} h5 {[%emt 0:01:41] [#] White now steadily converts the win.} 29. g5 {[%emt 0:00:42]} Bc8 {[%emt 0:01:00]} 30. h4 {[%emt 0:00:34]} Bd7 {[%emt 0:01:15]} 31. Rf1 {[%emt 0:02:15]} Bc6 {[%emt 0:01:14]} 32. Re1 {[%emt 0:02:29]} Kd6 {[%emt 0:00:18] [#]} (32... Bb7 $16 {keeps fighting.}) 33. e5+ $1 $18 {[%emt 0:03:17]} Ke7 {[%emt 0:01:12]} 34. e6 {[%emt 0:00:08] Against Bd7} Bg2 $2 {[%emt 0:01:40]} (34... Ke8 35. exf7+ Kxf7) 35. exf7+ {[%emt 0:01:43]} Kxf7 {[%emt 0:00:04]} 36. Re6 {[%emt 0:00:07]} Bh3 {[%emt 0:00:54]} 37. Rf6+ {[%emt 0:00:28]} Kg7 {[%emt 0:00:02]} 38. f5 {[%emt 0:06:50] Black must now prevent Ne6+.} Bxf5 {[%emt 0:00:36] [#]} (38... Kh7 39. Rf7+ Kg8 40. fxg6 a6) 39. Rxf5 $1 {[%emt 0:00:03][%mdl 576] Intending Ne6+ and mate. Remove Defender} gxf5 {[%emt 0:02:12] KR-KN} (39... Rc8 40. Rf6) 40. Ne6+ {[%emt 0:00:01]} Kg6 {[%emt 0:00:10]} 41. Nxc5 {[%emt 0:00:03]} bxc5 {[%emt 0:00:06]} 42. Kxc4 {[%emt 0:00:02] KP-KP} (42. a4 $18 f4 43. Kxc4) 42... f4 {[%emt 0:00:22] White mates.} 43. Kd3 {[%emt 0:00:02]} Kf5 {[%emt 0:00:14]} 44. Ke2 {[%emt 0:00:01]} c4 {[%emt 0:03:00]} 45. Kf3 {[%emt 0:00:02]} a6 {[%emt 0:00:17]} 46. a4 {[%emt 0:00:00]} a5 {[%emt 0:00:19]} 47. g6 {[%emt 0:00:02]} Kxg6 {[%emt 0:00:06]} 48. Kxf4 {[%emt 0:00:01] K3P-K3P} Kf6 {[%emt 0:00:10]} 49. Ke4 {[%emt 0:00:00]} Ke6 {[%emt 0:00:12]} 50. Kd4 {[%emt 0:00:01]} Kf5 {[%emt 0:00:09]} 51. Kxc4 {[%emt 0:00:02]} Kg4 {[%emt 0:00:11]} 52. b4 {[%emt 0:00:02][%cal Bb2b4,Bb4a5][%mdl 32]} Kxh4 {[%emt 0:00:13]} 53. bxa5 {[%emt 0:00:04] Weighted Error Value: White=0.01 (flawless) /Black=0.13 (very precise)} 1-0